[Event "US Masters 2022"]
[Site "Charlotte"]
[Date "2022.11.26"]
[Round "5.21"]
[White "Rahul Srivatshav P"]
[Black "Sargsyan, Anna M."]
[Result "1-0"]
[ECO "E20"]
[WhiteElo "2498"]
[BlackElo "2384"]
[Annotator "TA"]
[PlyCount "69"]
[EventDate "2022.11.23"]
[EventType "swiss"]
[EventCountry "USA"]
[SourceTitle "playchess.com"]
[Source "ChessBase"]
[SourceQuality "1"]
[TimeControl "5400+30"]

{[%evp 12,69,27,20,18,21,17,8,4,0,75,-51,-14,-59,-36,-48,-27,-31,-12,-22,1,-4,-8,-14,60,60,138,124,127,139,130,133,154,127,184,186,212,196,234,236,288,306,329,326,334,320,514,513,508,494,703,688,2618,2031,1258,1244,29987,29988,29990,29986]} 1. d4 {[%emt 0:08:10]} Nf6 {[%emt 0:02:34]} 2. c4 {[%emt 0:00:19]} e6 {[%emt 0:00:09]} 3. Nc3 {[%emt 0:01:51]} Bb4 {[%emt 0:00:06]} 4. f3 {[%emt 0:00:02]} d5 {[%emt 0:02:41]} 5. a3 {[%emt 0:01:29]} Be7 {[%emt 0:02:20]} 6. e4 {[%emt 0:00:22]} dxc4 {[%emt 0:01:02]} 7. Bxc4 {[%emt 0:07:41]} c5 {[%emt 0:00:04] E20: Nimzo-Indian: 4 g3 and 4 f3.} 8. dxc5 {[%emt 0:00:03]} Qxd1+ {[%emt 0:00:12]} 9. Kxd1 {[%emt 0:00:03] Strongly threatening Nb5.} Bxc5 {[%emt 0:00:22] The position is equal.} 10. b4 {[%emt 0:12:10] [#]} Be7 $146 {[%emt 0:01:26]} (10... Bb6 $11 {keeps the balance.}) ({Predecessor:} 10... Bb6 11. Nge2 O-O 12. Na4 Bc7 13. Be3 Nc6 14. Rc1 Ne5 15. Bb3 Rd8+ 16. Kc2 Bd7 {½-½ (40) Sethuraman,S (2625)-Hakobyan,A (2612) Dubai 2022}) 11. Bb2 {[%emt 0:08:27] White is more active.} ({White should try} 11. Nb5 $1 $16 {[%cal Rb5c7] Threatens to win with Nc7+.} Na6 12. Be3) 11... Nc6 {[%emt 0:03:36]} 12. Nge2 {[%emt 0:07:05]} (12. f4 {keeps more tension.} Ng4 13. Ke2 Nd4+ 14. Kd3) 12... Bd7 {[%emt 0:07:50]} 13. Kc2 {[%emt 0:07:53]} Rc8 {[%emt 0:01:33]} 14. Bb3 {[%emt 0:04:05]} O-O {[%emt 0:17:49][%cal Ob7b5]} (14... b5 {simplifies} 15. Kb1 a5 16. Rd1 axb4 17. axb4 Nxb4 18. g4 h6) 15. Rhd1 {[%emt 0:02:28] Against b5} Ne5 {[%emt 0:06:52]} 16. Rac1 {[%emt 0:08:18]} a5 {[%emt 0:05:47]} 17. bxa5 {[%emt 0:00:50]} Bb5 {[%emt 0:00:44]} ({Black should play} 17... Nc6 $11) 18. Nd4 $1 $14 {[%emt 0:05:18]} Ba6 {[%emt 0:07:20] [#] Black is now going downhill.} (18... Be8 $14) 19. Nxe6 $1 $16 {[%emt 0:08:30][%mdl 512]} fxe6 {[%emt 0:00:26]} 20. Bxe6+ {[%emt 0:00:05]} Kh8 {[%emt 0:00:02]} 21. Bxc8 {[%emt 0:00:09]} Rxc8 {[%emt 0:00:07] [#]} 22. Kb1 $1 {[%emt 0:00:35] aiming for Nd5.} Nc4 {[%emt 0:05:31] [#]} (22... Bd3+ $2 23. Ka1 $18) (22... Kg8 $16) 23. e5 $1 $18 {[%emt 0:03:51]} Ng8 {[%emt 0:07:21][%cal Oe7g5]} 24. Ne4 {[%emt 0:03:00] Against Bg5} Rf8 {[%emt 0:02:25]} 25. Rd7 {[%emt 0:00:24]} h6 {[%emt 0:02:58]} 26. Nd6 {[%emt 0:02:51]} Nxa5 {[%emt 0:03:36]} 27. Rcc7 {[%emt 0:02:25]} Nc6 {[%emt 0:04:22]} 28. Nxb7 {[%emt 0:00:27]} Bxb7 {[%emt 0:02:31]} (28... Bb5 {might work better.} 29. Nd6 Ba4) 29. Rxb7 {[%emt 0:00:05]} Ra8 {[%emt 0:00:03]} 30. Rdc7 {[%emt 0:02:16]} Ra6 {[%emt 0:01:16]} (30... Nd8 $142 31. Rxe7 Nxe7 32. Rxe7 Kg8) 31. f4 {[%emt 0:00:16]} g6 {[%emt 0:03:27]} 32. e6+ {[%emt 0:00:06]} Kh7 {[%emt 0:00:04]} 33. g4 {[%emt 0:00:02][%cal Bg2g4,Bg4g5][%mdl 32]} h5 {[%emt 0:00:40]} 34. g5 {[%emt 0:00:05]} h4 {[%emt 0:00:26]} 35. h3 {[%emt 0:00:03] Weighted Error Value: White=0.10 (very precise) /Black=0.50} 1-0

[Event "US Masters 2022"]
[Site "Charlotte"]
[Date "2022.11.26"]
[Round "5.22"]
[White "Malicka, Maria"]
[Black "Nagy, Gabor"]
[Result "1/2-1/2"]
[ECO "B48"]
[WhiteElo "2275"]
[BlackElo "2482"]
[Annotator "TA"]
[PlyCount "109"]
[EventDate "2022.11.23"]
[EventType "swiss"]
[EventCountry "USA"]
[SourceTitle "playchess.com"]
[Source "ChessBase"]
[SourceQuality "1"]
[TimeControl "5400+30"]

{[%evp 11,109,31,39,9,23,9,2,0,18,29,61,58,64,52,66,51,57,43,67,44,52,44,39,52,59,0,77,92,70,66,166,164,349,317,360,344,640,640,661,635,641,631,607,500,1139,1109,1356,1322,1241,206,1146,184,205,181,167,167,161,152,174,162,154,83,73,20,41,7,6,0,0,0,0,0,0,0,0,0,0,0,0,-3,-13,-74,-74,-166,-175,-188,-103,-157,-139,-143,-142,-137,-73,-74,0,-127,0,-72,0,-87]} 1. e4 {[%emt 0:00:12]} c5 {[%emt 0:03:31]} 2. Nf3 {[%emt 0:00:05]} e6 {[%emt 0:00:34]} 3. d4 {[%emt 0:00:05]} cxd4 {[%emt 0:00:11]} 4. Nxd4 {[%emt 0:00:04]} Nc6 {[%emt 0:00:49]} 5. Nc3 {[%emt 0:00:04]} Qc7 {[%emt 0:00:37]} 6. Be3 {[%emt 0:00:06]} a6 {[%emt 0:00:35]} 7. g4 {[%emt 0:00:06] B48: Sicilian: Taimanov: 5 Nc3 Qc7 6 Be3 a6 without Be2.} h6 {[%emt 0:01:46]} 8. h4 {[%emt 0:04:40]} Nf6 {[%emt 0:02:45]} 9. Nxc6 {[%emt 0:17:09] [#]} dxc6 $146 {[%emt 0:04:26]} ({Predecessor:} 9... bxc6 10. Qf3 d5 11. g5 Nd7 12. O-O-O hxg5 13. hxg5 Rxh1 14. Qxh1 Bb7 15. g6 fxg6 {½-½ (50) Oparin,G (2674)-Moussard,J (2630) Chess.com INT 2022}) 10. Qf3 {[%emt 0:08:24]} h5 {[%emt 0:02:48]} 11. gxh5 {[%emt 0:01:01]} Nxh5 {[%emt 0:05:11]} 12. O-O-O {[%emt 0:00:47]} Be7 {[%emt 0:01:00]} 13. Kb1 {[%emt 0:08:35] White has more active pieces.} b5 {[%emt 0:03:58]} 14. Bg5 {[%emt 0:07:04]} Bb7 {[%emt 0:03:14]} 15. Bxe7 {[%emt 0:05:10]} (15. Be2 {simplifies} e5 16. Qg2 g6 17. Bxh5 Rxh5 18. Ne2) 15... Kxe7 {[%emt 0:00:45]} 16. Qe3 {[%emt 0:00:41]} c5 {[%emt 0:04:16]} 17. Rg1 {[%emt 0:04:48]} g6 {[%emt 0:04:15]} 18. e5 {[%emt 0:05:30]} (18. Bh3 $14) 18... Kf8 {[%emt 0:04:27]} (18... Ng7 $1 $11) 19. Be2 $1 $36 {[%emt 0:05:36][%mdl 2048] Keeping Black busy.} Ng7 {[%emt 0:00:39]} 20. Qf4 {[%emt 0:30:23]} (20. Ne4 Qxe5 21. Qxc5+ (21. Nxc5 Qxe3 22. fxe3 Bc6 $15) 21... Qxc5 22. Nxc5 Bc6 $15) 20... Qe7 {[%emt 0:08:15]} (20... Nf5 21. h5 Rd8 22. hxg6 Rxd1+ 23. Nxd1 $16 (23. Rxd1 fxg6 24. Qg5 Nd4 $16)) (20... Kg8 $14) 21. Rxg6 $18 {[%emt 0:00:00]} Rxh4 {[%emt 0:00:27]} (21... Rd8 {is a better defense.}) 22. Rg4 {[%emt 0:00:00]} Rxg4 {[%emt 0:00:19]} 23. Qxg4 {[%emt 0:00:00] And now Rg1 would win.} (23. Bxg4 Rd8 $16) 23... Rd8 $2 {[%emt 0:01:46]} (23... b4 24. Qh3 Qg5 25. Bxa6 Bc6) 24. Rg1 {[%emt 0:00:00]} f5 {[%emt 0:00:07]} 25. Qh3 {[%emt 0:00:00] Intending Qh8+ and mate.} Kg8 {[%emt 0:00:12] Inhibits Qh8+.} 26. Qh6 {[%emt 0:00:00]} Rd4 {[%emt 0:00:21]} 27. f4 {[%emt 0:00:00]} b4 {[%emt 0:01:20] [#]} (27... Rd2 $142 28. Bh5 Rh2 29. Bf7+ Qxf7 30. Qxh2 Bf3) 28. Bh5 $1 {[%emt 0:00:00][%cal Oh5g6] Strongly threatening Bg6!} bxc3 {[%emt 0:00:08]} (28... Rd2 29. Bg6) 29. Bg6 {[%emt 0:00:00]} Qd7 {[%emt 0:00:12]} 30. Qh7+ {[%emt 0:00:00]} Kf8 {[%emt 0:00:08]} 31. Qh8+ $2 {[%emt 0:00:00]} (31. bxc3 $2 Rd1+ 32. Rxd1 Qxd1+ $19) (31. Bh5 {White wants to mate with Qh8+.} Bg2 32. Qh8+ (32. Rxg2 $2 Rd1+ 33. Bxd1 Qxd1#) (32. bxc3 Nxh5 33. Qh8+ Ke7 $11) 32... Ke7 33. Qxg7+ Kd8 34. Qxg2) 31... Ke7 {[%emt 0:00:08]} 32. Qxg7+ {[%emt 0:02:09]} Kd8 {[%emt 0:00:08]} 33. Qf8+ {[%emt 0:00:06]} Kc7 {[%emt 0:00:08]} 34. Qxc5+ {[%emt 0:00:11]} (34. bxc3 Qb5+ 35. Ka1 Qc4 $11) 34... Kb8 {[%emt 0:00:27]} 35. Bh5 {[%emt 0:01:00] Prevents Rd1+. Rg8+ is the strong threat.} (35. bxc3 Rxf4 36. Bh5 Qb5+ 37. Qxb5 axb5 $11) 35... Rxf4 {[%emt 0:03:45]} 36. Qxc3 {[%emt 0:00:08]} ({Don't play} 36. bxc3 $6 Qb5+ 37. Qxb5 axb5 $11) (36. Rg8+ $6 Bc8 37. bxc3 (37. Qb6+ Qb7 $11) 37... Rf1+ 38. Kb2 Qb7+ 39. Qb4 (39. Ka3 Rb1 $11) 39... a5 $11) (36. a3 $142 $1) 36... Qd4 $16 {[%emt 0:01:46]} 37. Qxd4 {[%emt 0:03:09]} ({White should try} 37. Rg8+ $16 Ka7 38. Qxd4+ Rxd4 39. Kc1) 37... Rxd4 {[%emt 0:00:02][%mdl 4096] Endgame KRB-KRB} 38. b3 {[%emt 0:00:46] Black should prevent Rg8+.} Re4 {[%emt 0:01:22]} 39. Bf3 {[%emt 0:01:02]} Rxe5 {[%emt 0:00:06]} 40. Rg8+ {[%emt 0:00:05]} Bc8 $1 {[%emt 0:00:07]} 41. Kc1 {[%emt 0:00:31]} Re3 {[%emt 0:01:26]} 42. Bg2 {[%emt 0:00:33]} Kc7 {[%emt 0:00:23]} 43. Kd2 {[%emt 0:00:01]} f4 {[%emt 0:00:55]} 44. c4 {[%emt 0:01:01]} e5 {[%emt 0:01:24]} 45. Rf8 {[%emt 0:01:10]} Bg4 {[%emt 0:01:19] Threatens to win with ...Re2+.} 46. Rf7+ {[%emt 0:00:33]} (46. Bd5 $11) 46... Kd6 $1 $17 {[%emt 0:00:29] aiming for ...Re2+.} 47. Bb7 {[%emt 0:00:12]} ({Don't go for} 47. Rf6+ $2 Ke7 $19) (47. Bf1 $17) 47... a5 $1 $19 {[%emt 0:01:02]} ({And not} 47... Re2+ 48. Kd3 $17) 48. Rf6+ {[%emt 0:00:36]} Kc5 {[%emt 0:01:49]} (48... Ke7 $1 $19 49. Rg6 Bf3) 49. Rc6+ {[%emt 0:00:20]} (49. Ba8 $142) 49... Kb4 $17 {[%emt 0:00:07]} 50. Rb6+ {[%emt 0:00:43]} Ka3 $1 {[%emt 0:00:09]} 51. Rg6 {[%emt 0:00:35] [#]} Re2+ {[%emt 0:02:54]} ({Black should play} 51... Bf5 $1 {[%cal Rf5g6]} 52. Rg5 Bh3) 52. Kd3 {[%emt 0:00:35]} Re3+ {[%emt 0:00:35]} (52... Bh5 $142 {( -> ...Re3+)} 53. Rg5 Re3+ 54. Kd2 Be2) 53. Kd2 {[%emt 0:00:01] [#]} Re2+ {[%emt 0:03:08]} ({Better is} 53... Bf5 $1 {[%cal Rf5g6]} 54. Rg5 Bh3) 54. Kd3 {[%emt 0:00:17]} Re3+ {[%emt 0:01:44]} (54... Bh5 $5 {[%cal Re2e3]} 55. Rg5 Re3+ 56. Kd2 Be2 $15) 55. Kd2 {[%emt 0:00:00] Never resign too early!   Weighted Error Value: White=0.26 (precise) /Black=0.33} 1/2-1/2

[Event "US Masters 2022"]
[Site "Charlotte"]
[Date "2022.11.26"]
[Round "5.23"]
[White "Macovei, Andrei"]
[Black "Chen, Ryo"]
[Result "1-0"]
[ECO "B66"]
[WhiteElo "2482"]
[BlackElo "2269"]
[Annotator "TA"]
[PlyCount "85"]
[EventDate "2022.11.23"]
[EventType "swiss"]
[EventCountry "USA"]
[SourceTitle "playchess.com"]
[Source "ChessBase"]
[SourceQuality "1"]
[TimeControl "5400+30"]

{[%evp 18,85,52,58,70,54,56,60,62,48,62,59,59,62,86,78,71,81,75,0,0,0,39,29,75,28,28,31,25,32,43,43,64,52,135,62,70,64,96,111,143,137,190,183,164,179,226,192,237,246,254,232,271,260,291,275,288,279,349,354,530,473,1679,1678,29987,29988,29988,29983,29972,2161]} 1. e4 {[%emt 0:04:13]} c5 {[%emt 0:00:14]} 2. Nf3 {[%emt 0:00:03]} d6 {[%emt 0:00:16]} 3. d4 {[%emt 0:00:02]} cxd4 {[%emt 0:00:10]} 4. Nxd4 {[%emt 0:00:03]} Nf6 {[%emt 0:00:31]} 5. Nc3 {[%emt 0:00:02]} Nc6 {[%emt 0:00:15]} 6. Bg5 {[%emt 0:00:59]} a6 {[%emt 0:00:31]} 7. Qd2 {[%emt 0:04:15]} Qb6 {[%emt 0:00:20]} 8. Nb3 {[%emt 0:05:35]} e6 {[%emt 0:00:45]} 9. O-O-O {[%emt 0:01:00]} Qc7 {[%emt 0:00:17]} 10. f4 {[%emt 0:06:46][%cal Bf2f4,Bf4f5][%mdl 32]} b5 {[%emt 0:02:11] B66: Sicilian: Richter-Rauzer: 7...a6 8 0-0-0 h6.} 11. Kb1 {[%emt 0:00:19]} Be7 {[%emt 0:25:15]} 12. Bxf6 {[%emt 0:19:32]} gxf6 {[%emt 0:00:12] White is slightly better.} 13. Ne2 {[%emt 0:54:11][%cal Of4f5]} b4 {[%emt 0:21:44] Prevents f5.} 14. f5 {[%emt 0:00:00] [#]} e5 $146 {[%emt 0:06:55] Prevents Nf4.} ({Predecessor:} 14... a5 15. Ned4 a4 16. Bb5 Bd7 17. fxe6 fxe6 18. Bxc6 Bxc6 19. Nxe6 Qb7 20. Nbd4 Bxe4 {0-1 (50) Mickiewicz,P (2283)-Kharmunova,N (2025) Chess.com INT 2022}) 15. c3 {[%emt 0:00:00]} a5 {[%emt 0:00:42]} 16. cxb4 {[%emt 0:00:00]} axb4 {[%emt 0:00:20]} 17. Nec1 {[%emt 0:00:00]} Bb7 {[%emt 0:09:57]} 18. Bb5 {[%emt 0:00:00]} (18. Bc4 $16) 18... O-O $11 {[%emt 0:08:26]} 19. Qe2 {[%emt 0:00:00]} Kh8 {[%emt 0:01:57]} 20. Bc4 {[%emt 0:00:00]} Na5 {[%emt 0:03:10]} (20... Nb8 $11) 21. Bd5 {[%emt 0:00:00]} ({White should try} 21. Nxa5 $16 Qxa5 22. Rhe1) 21... Bxd5 {[%emt 0:01:11]} 22. Rxd5 {[%emt 0:00:00]} Nxb3 {[%emt 0:00:54]} 23. Nxb3 {[%emt 0:00:00]} Qa7 {[%emt 0:01:17]} 24. Ra5 {[%emt 0:00:00] Active counter play!} Qb7 {[%emt 0:02:24]} 25. Rd1 {[%emt 0:00:00]} Rac8 {[%emt 0:02:36]} (25... Rfc8 $14) 26. Qd3 {[%emt 0:00:00]} (26. Rad5 $16) 26... Rg8 $14 {[%emt 0:03:28]} 27. g3 {[%emt 0:00:00][%cal Bg2g3,Bg3g4][%mdl 32]} Rg4 {[%emt 0:03:24] Black is now going downhill.} 28. Nd2 {[%emt 0:00:00][%cal Bb3d2,Bd2c4,Bc4e3,Be3d5,Bd5f6][%mdl 32]} Bf8 {[%emt 0:02:16]} 29. h3 {[%emt 0:00:00]} Qc7 {[%emt 0:01:12] [#]} (29... Rg5 $16 {might work better.}) 30. Nc4 $1 $18 {[%emt 0:00:00]} Rg8 {[%emt 0:01:30]} 31. b3 {[%emt 0:00:00]} (31. Nxd6 $2 Bxd6 32. Rd5 {[#]} Rxg3 $3 $19 {[%mdl 512]}) 31... Be7 {[%emt 0:00:41]} (31... Qc6 $142 32. g4 (32. Nxd6 Qxd6 33. Qxd6 Bxd6 $15) 32... Qb7) 32. g4 {[%emt 0:00:00]} Ra8 {[%emt 0:00:21]} 33. Rxa8 {[%emt 0:00:00]} Rxa8 {[%emt 0:00:05]} 34. Ne3 {[%emt 0:00:00]} (34. Nxd6 Qa7 35. Qe2 (35. Nxf7+ $2 Kg7 $19) 35... Bxd6 36. Rxd6 Qg1+ 37. Kb2 (37. Rd1 Qg3 $11) 37... Kg7 $14) 34... Qa7 {[%emt 0:00:22]} 35. Qe2 {[%emt 0:00:00]} Bd8 {[%emt 0:00:59]} 36. Nd5 {[%emt 0:00:00]} (36. Rxd6 Kg7 37. Rd1 Rc8 $18) 36... Qa5 {[%emt 0:00:49]} 37. Rc1 {[%emt 0:00:00]} Bb6 {[%emt 0:00:19]} 38. h4 {[%emt 0:00:00][%cal Bh3h4,Bh4g5][%mdl 32]} ({Less strong is} 38. Nxf6 Be3 39. Rc2 (39. Qxe3 $2 Qxa2#) (39. Rc6 Bg5 $16) 39... Bc5 $18) 38... Bd4 {[%emt 0:00:21]} (38... Bd8 {was called for.} 39. Rc4 h6 40. Nxb4 Qb6) 39. g5 {[%emt 0:00:00] Strongly threatening Rc7.} fxg5 {[%emt 0:00:38]} (39... Bc3 $142 40. a4 Qd8 41. Nxf6 Qf8) 40. hxg5 {[%emt 0:00:00]} Qd8 {[%emt 0:00:37]} 41. Nf6 {[%emt 0:00:00] White mates.} ({Not} 41. Nxb4 Qxg5 42. Rh1 Rg8 $16) 41... Kg7 {[%emt 0:00:23]} 42. Qh2 {[%emt 0:00:00]} Kf8 {[%emt 0:00:17]} 43. Qxh7 {[%emt 0:15:00] Weighted Error Value: White=0.08 (flawless) /Black=0.43} (43. Qh6+ $142 Ke7 44. Qxh7 Bc5 45. Nd5+ Ke8 46. Qg8+ Kd7 47. Qxf7+ Kc6 48. Nxb4+ Kb6 49. Nd5+ Ka6 50. Nc7+ Kb6 51. Nxa8+ Qxa8 52. Qc4) 1-0

[Event "US Masters 2022"]
[Site "Charlotte"]
[Date "2022.11.26"]
[Round "5.24"]
[White "Rodriguez Garcia, Victor"]
[Black "Canty, James"]
[Result "1-0"]
[ECO "B50"]
[WhiteElo "2350"]
[BlackElo "2158"]
[Annotator "TA"]
[PlyCount "99"]
[EventDate "2022.11.23"]
[EventType "swiss"]
[EventCountry "USA"]
[SourceTitle "playchess.com"]
[Source "ChessBase"]
[SourceQuality "1"]
[TimeControl "5400+30"]

{[%evp 10,99,11,12,11,0,11,0,0,0,12,12,13,17,16,12,18,21,11,9,46,57,88,31,61,55,106,0,0,0,0,0,0,22,13,3,18,23,29,34,24,20,34,35,58,33,35,44,74,79,78,82,125,122,131,126,139,138,622,622,622,622,619,612,612,612,612,612,612,610,797,797,770,622,1360,1360,1360,1360,1355,1297,1364,1322,1049,1027,1661,1654,1556,1367,979,741,847,788]} 1. e4 {[%emt 0:07:08]} c5 {[%emt 0:09:13]} 2. Nf3 {[%emt 0:00:19]} d6 {[%emt 0:00:06]} 3. c3 {[%emt 0:00:25]} Nf6 {[%emt 0:01:12]} 4. h3 {[%emt 0:00:21]} Nc6 {[%emt 0:08:57]} 5. Bd3 {[%emt 0:00:20]} e5 {[%emt 0:05:25]} 6. Bc2 {[%emt 0:00:22]} g6 {[%emt 0:07:39] 6...d5 is the modern continuation. B50: Sicilian: 2...d6, Miscellaneous.} 7. O-O {[%emt 0:01:40]} Bg7 {[%emt 0:00:15]} 8. d4 {[%emt 0:00:54]} exd4 {[%emt 0:02:21] The position is equal.} 9. cxd4 {[%emt 0:00:08]} O-O {[%emt 0:00:28]} 10. d5 {[%emt 0:04:06]} Nb4 {[%emt 0:01:19]} 11. Nc3 {[%emt 0:00:16]} Nxc2 {[%emt 0:00:13]} 12. Qxc2 {[%emt 0:00:06]} Re8 {[%emt 0:01:22][%cal Ob7b5]} 13. Re1 {[%emt 0:02:00]} a6 {[%emt 0:07:31]} 14. a4 {[%emt 0:00:53] Inhibits b5.} b6 {[%emt 0:00:03]} 15. Bf4 {[%emt 0:01:38] [#]} Bb7 $146 {[%emt 0:06:44]} ({Predecessor:} 15... Ra7 16. e5 dxe5 17. Bxe5 Rd7 18. d6 Bb7 19. Nd2 Rxe5 20. Rxe5 Rxd6 21. Nc4 Rd4 {0-1 (37) Kundrik,P (2260)-Likavsky,T (2486) Slovakia 2012}) 16. Bh2 {[%emt 0:03:26] White is more active.} (16. Nd2 $16) 16... Qd7 {[%emt 0:05:47]} 17. Rad1 $1 {[%emt 0:12:21]} Rad8 {[%emt 0:04:35] [#]} (17... c4 $14) 18. e5 {[%emt 0:16:53]} ({Better is} 18. Qb3 $1 $16) 18... dxe5 $11 {[%emt 0:00:05]} 19. Nxe5 {[%emt 0:00:05]} Qc8 {[%emt 0:00:04][%cal Rf6d5]} 20. Qb3 {[%emt 0:08:34]} Nxd5 {[%emt 0:05:08]} 21. Nxd5 {[%emt 0:06:03][%cal Od5f6] White wants to mate with Nf6+!} Qe6 {[%emt 0:00:25][%cal Rb7d5] Inhibits Nf6+.} 22. Qxb6 {[%emt 0:01:22]} Bxd5 {[%emt 0:00:50] A strong pair of Bishops.} 23. Qxc5 {[%emt 0:03:07] And now Qa5 would win.} Ba8 {[%emt 0:04:24]} 24. Rxd8 {[%emt 0:02:26]} Rxd8 {[%emt 0:00:05]} 25. Bg3 {[%emt 0:01:19]} Rc8 {[%emt 0:07:35] Prevents b4.} 26. Qd4 {[%emt 0:03:27]} Bf6 {[%emt 0:00:59]} 27. b4 {[%emt 0:00:39]} Rd8 {[%emt 0:06:46]} 28. Qf4 {[%emt 0:02:20]} Bxe5 {[%emt 0:08:01]} 29. Qxe5 {[%emt 0:02:08]} (29. Rxe5 {gets mated.} Rd1+ 30. Kh2 {[#]} Rh1+ $3 {[%mdl 512]} 31. Kxh1 Qxh3+ 32. Bh2 Qxg2#) 29... Re8 {[%emt 0:04:52]} 30. Qxe6 {[%emt 0:00:34]} fxe6 $16 {[%emt 0:00:03][%mdl 4096] Endgame KRB-KRB} 31. b5 {[%emt 0:00:38]} axb5 {[%emt 0:00:05]} 32. axb5 {[%emt 0:00:04][%cal Ba4b5,Bb5b6][%mdl 32]} Bd5 {[%emt 0:00:37]} 33. b6 {[%emt 0:00:24] Threatens to win with Rd1.} Ra8 $2 {[%emt 0:01:25][%mdl 8192] A mistake that costs the game.} (33... Kf7 $16 34. Rd1 Bb7) 34. Rd1 $18 {[%emt 0:00:32] White is clearly winning.} Be4 {[%emt 0:02:56]} 35. Rd4 {[%emt 0:01:27]} Ra1+ {[%emt 0:00:00]} 36. Kh2 {[%emt 0:00:08]} Bc6 {[%emt 0:00:06]} 37. b7 {[%emt 0:00:41]} Bxb7 {[%emt 0:00:22]} 38. Rd8+ {[%emt 0:00:04]} Kf7 {[%emt 0:00:03]} 39. Rd7+ {[%emt 0:00:05]} Kf6 {[%emt 0:00:04]} 40. Rxb7 {[%emt 0:00:08] KRB-KR} h5 {[%emt 0:00:08]} 41. h4 {[%emt 0:00:19]} Ra4 {[%emt 0:00:38]} 42. Rb5 {[%emt 0:00:21]} Re4 {[%emt 0:00:18]} 43. f3 {[%emt 0:00:45]} Re2 {[%emt 0:00:03]} 44. Bf4 {[%emt 0:00:47]} Ke7 {[%emt 0:00:32]} 45. Kg3 {[%emt 0:00:23]} Ra2 {[%emt 0:00:18]} 46. Rb7+ {[%emt 0:00:21]} Kf6 {[%emt 0:00:09]} 47. Bg5+ {[%emt 0:00:20]} Ke5 {[%emt 0:00:13]} 48. Rg7 {[%emt 0:00:10]} Kf5 {[%emt 0:00:14]} 49. Rf7+ {[%emt 0:00:06]} Ke5 {[%emt 0:00:07]} 50. Rf6 {[%emt 0:00:04] Weighted Error Value: White=0.11 (very precise) /Black=0.31} 1-0

[Event "US Masters 2022"]
[Site "Charlotte"]
[Date "2022.11.26"]
[Round "6.1"]
[White "Ramirez, Alejandro"]
[Black "Naroditsky, Daniel"]
[Result "1/2-1/2"]
[WhiteElo "2561"]
[BlackElo "2617"]
[Annotator "TA"]
[PlyCount "44"]
[EventDate "2022.11.23"]
[EventType "swiss"]
[EventCountry "USA"]
[SourceTitle "playchess.com"]
[Source "ChessBase"]
[SourceQuality "1"]
[TimeControl "5400+30"]

{[%evp 13,14,16,20]} 1. Nf3 {[%emt 0:03:01]} Nf6 {[%emt 0:01:00]} 2. c4 {[%emt 0:00:05]} g6 {[%emt 0:00:09]} 3. Nc3 {[%emt 0:00:14]} Bg7 {[%emt 0:00:21]} 4. e4 {[%emt 0:00:10]} d6 {[%emt 0:00:11]} 5. d4 {[%emt 0:00:12]} O-O {[%emt 0:00:14]} 6. Be2 {[%emt 0:00:09]} e5 {[%emt 0:00:16]} 7. dxe5 {[%emt 0:00:27]} dxe5 {[%emt 0:00:06] [#]} {Predecessor:} 8. Qxd8 $146 {E92: King's Indian: Classical: 6 Be2 e5: 7 dxe5, 7 Be3 and Petrosian System without 7...Nbd7.} Rxd8 9. Bg5 Re8 10. Nd5 Nxd5 11. cxd5 c6 12. Bc4 b5 13. Bb3 a5 14. a4 bxa4 15. Bxa4 Bd7 16. dxc6 Bxc6 17. Ke2 Bxa4 18. Rxa4 Nc6 19. Rc1 Nd4+ 20. Kf1 Rab8 21. Rb1 Rb5 22. Nxd4 exd4 {½-½ (38) So,W (2776)-Firouzja,A (2804) Bucharest 2022} 1/2-1/2